fUST/lending_fUST_20250520
["ID","MTS","AMOUNT","RATE_DAILY","PERIOD"]
[361748505,1747755035367,-400.0,0.00016438,2]
[361748506,1747755035376,-212.23,0.00016438,2]
[361748507,1747755035386,-400.0,0.00016438,2]
[361748508,1747755035398,-430.0,0.00016438,2]
[361748509,1747755035407,-430.0,0.00016438,2]
[361748510,1747755035416,-400.0,0.00016438,2]
[361748511,1747755035427,-430.0,0.00016438,2]
[361748512,1747755035436,-495.98,0.00016438,2]
[361748513,1747755035446,-430.0,0.00016438,2]
[361748514,1747755035455,-430.0,0.00016438,2]
[361748515,1747755035465,-430.0,0.00016438,2]
[361748516,1747755035475,-400.0,0.00016438,2]
[361748517,1747755035485,-294.48,0.00016438,2]
[361748518,1747755035494,-430.0,0.00016438,2]
[361748519,1747755035503,-430.0,0.00016438,2]
[361748520,1747755035513,-430.0,0.00016438,2]
[361748521,1747755035524,-512.9,0.00016438,2]
[361748522,1747755035535,-430.0,0.00016438,2]
[361748523,1747755035547,-677.76,0.00016438,2]
[361748524,1747755035556,-677.76,0.00016438,2]
[361748525,1747755035565,-430.0,0.00016438,2]
[361748526,1747755035577,-1103.97,0.00016438,2]
[361748527,1747755035587,-400.0,0.00016438,2]
[361748528,1747755035597,-450.0,0.00016438,2]
[361748529,1747755035608,-460.09,0.00016438,2]
[361748530,1747755035618,-400.0,0.00016438,2]
[361748531,1747755035628,-403.48951065,0.00016438,2]
[361748532,1747755035638,-430.0,0.00016438,2]
[361748533,1747755035648,-400.0,0.00016438,2]
[361748534,1747755035658,-786.0,0.00016438,2]
[361748535,1747755035668,-430.0,0.00016438,2]
[361748536,1747755035678,-430.0,0.00016438,2]
[361748537,1747755035689,-430.0,0.00016438,2]
[361748538,1747755035698,-461.04,0.00016438,2]
[361748539,1747755035708,-334.19837608,0.00016438,2]
[361748540,1747755035718,-400.0,0.00016438,2]
[361748541,1747755035728,-469.1,0.00016438,2]
[361748542,1747755035738,-485.08,0.00016438,2]
[361748543,1747755035748,-430.0,0.00016438,2]
[361748544,1747755035758,-430.0,0.00016438,2]
[361748545,1747755035768,-430.0,0.00016438,2]
[361748546,1747755035777,-450.0,0.00016438,2]
[361748547,1747755035787,-450.0,0.00016438,2]
[361748548,1747755035798,-400.0,0.00016438,2]
[361748549,1747755035808,-430.0,0.00016438,2]
[361748550,1747755035818,-430.0,0.00016438,2]
[361748551,1747755035827,-430.0,0.00016438,2]
[361748552,1747755035837,-550.9,0.00016438,2]
[361748553,1747755035847,-400.0,0.00016438,2]
[361748554,1747755035856,-400.0,0.00016438,2]
[361748555,1747755035865,-430.0,0.00016438,2]
[361748556,1747755035875,-400.0,0.00016438,2]
[361748557,1747755035885,-430.0,0.00016438,2]
[361748558,1747755035896,-400.0,0.00016438,2]
[361748559,1747755035906,-544.16,0.00016438,2]
[361748560,1747755035916,-450.0,0.00016438,2]
[361748561,1747755035926,-402.60835027,0.00016438,2]
[361748562,1747755035936,-430.0,0.00016438,2]
[361748563,1747755035947,-883.66,0.00016438,2]
[361748564,1747755035960,-400.0,0.00016438,2]
[361748565,1747755035972,-400.23257623,0.00016438,2]
[361748566,1747755035982,-430.0,0.00016438,2]
[361748567,1747755035993,-400.0,0.00016438,2]
[361748568,1747755036003,-430.0,0.00016438,2]
[361748569,1747755036220,-430.0,0.00016438,2]
[361748570,1747755036230,-400.0,0.00016438,2]
[361748571,1747755036240,-430.0,0.00016438,2]
[361748572,1747755036250,-518.35,0.00016438,2]
[361748573,1747755036259,-463.46,0.00016438,2]
[361748574,1747755036268,-430.0,0.00016438,2]
[361748575,1747755036279,-500.0,0.00016438,2]
[361748576,1747755036289,-400.00118277,0.00016438,2]
[361748577,1747755036299,-400.83855506,0.00016438,2]
[361748578,1747755036308,-718.51,0.00016438,2]
[361748579,1747755036318,-400.0,0.00016438,2]
[361748580,1747755036327,-430.0,0.00016438,2]
[361748581,1747755036337,-430.0,0.00016438,2]
[361748582,1747755036348,-451.03,0.00016438,2]
[361748583,1747755036361,-404.8853484,0.00016438,2]
[361748584,1747755036371,-430.0,0.00016438,2]
[361748585,1747755036380,-400.0,0.00016438,2]
[361748586,1747755036391,-430.0,0.00016438,2]
[361748587,1747755036401,-417.37,0.00016438,2]
[361748588,1747755036411,-348.49841985,0.00016438,2]
[361748589,1747755036420,-430.0,0.00016438,2]
[361748590,1747755036432,-400.0,0.00016438,2]
[361748591,1747755036442,-400.0,0.00016438,2]
[361748592,1747755036453,-430.0,0.00016438,2]
[361748593,1747755036462,-578.79,0.00016438,2]
[361748594,1747755036474,-555.25,0.00016438,2]
[361748595,1747755036483,-5283.52,0.00016438,2]
[361748596,1747755036492,-430.0,0.00016438,2]
[361748597,1747755036501,-400.0,0.00016438,2]
[361748598,1747755036510,-401.1347524,0.00016438,2]
[361748599,1747755036520,-430.0,0.00016438,2]
[361748600,1747755036529,-430.0,0.00016438,2]
[361748601,1747755036539,-430.0,0.00016438,2]
[361748602,1747755036549,-430.0,0.00016438,2]
[361748603,1747755036559,-400.0,0.00016438,2]
[361748604,1747755036569,-400.0,0.00016438,2]
[361748605,1747755036578,-430.0,0.00016438,2]
[361748606,1747755036590,-430.0,0.00016438,2]
[361748607,1747755036600,-430.0,0.00016438,2]
[361748608,1747755036610,-500.0,0.00016438,2]
[361748609,1747755036620,-500.0,0.00016438,2]
[361748610,1747755036630,-500.0,0.00016438,2]
[361748611,1747755036639,-500.0,0.00016438,2]
[361748612,1747755036648,-540.26993337,0.00016438,2]
[361748613,1747755036658,-500.0,0.00016438,2]
[361748614,1747755036667,-500.0,0.00016438,2]
[361748615,1747755036677,-500.0,0.00016438,2]
[361748616,1747755036687,-500.0,0.00016438,2]
[361748617,1747755036697,-500.0,0.00016438,2]
[361748618,1747755036707,-500.0,0.00016438,2]
[361748619,1747755036717,-323.71469178,0.00016438,2]
[361748620,1747755036727,-400.0,0.00016438,2]
[361748621,1747755036737,-400.0,0.00016438,2]
[361748622,1747755036748,-401.64209689,0.00016438,2]
[361748623,1747755036758,-400.0,0.00016438,2]
[361748624,1747755036768,-430.0,0.00016438,2]
[361748625,1747755036779,-430.0,0.00016438,2]
[361748626,1747755036789,-400.0,0.00016438,2]
[361748627,1747755036799,-430.0,0.00016438,2]
[361748628,1747755036809,-397.82633996,0.00016438,2]
[361748629,1747755036820,-400.0,0.00016438,2]
[361748630,1747755036832,-400.0,0.00016438,2]
[361748631,1747755036843,-430.0,0.00016438,2]
[361748632,1747755036854,-400.0,0.00016438,2]
[361748633,1747755036865,-405.26315831,0.00016438,2]
[361748634,1747755036876,-400.0,0.00016438,2]
[361748635,1747755036888,-198.78,0.00016438,2]
[361748636,1747755036900,-430.0,0.00016438,2]
[361748637,1747755036912,-404.49630838,0.00016438,2]
[361748638,1747755036922,-430.0,0.00016438,2]
[361748639,1747755036933,-430.0,0.00016438,2]
[361748640,1747755036943,-430.0,0.00016438,2]
[361748641,1747755036953,-430.0,0.00016438,2]
[361748642,1747755036963,-400.0,0.00016438,2]
[361748643,1747755036973,-980.83,0.00016438,2]
[361748644,1747755036983,-450.0,0.00016438,2]
[361748645,1747755036992,-430.0,0.00016438,2]
[361748646,1747755037002,-450.0,0.00016438,2]
[361748647,1747755037012,-430.0,0.00016438,2]
[361748648,1747755037021,-3236.06,0.00016438,2]
[361748649,1747755037031,-430.0,0.00016438,2]
[361748650,1747755037043,-430.0,0.00016438,2]
[361748651,1747755037053,-401.39192368,0.00016438,2]
[361748652,1747755037064,-400.0,0.00016438,2]
[361748653,1747755037074,-430.0,0.00016438,2]
[361748654,1747755037083,-512.24004637,0.00016438,2]
[361748655,1747755037092,-1298.05,0.00016438,2]
[361748656,1747755037103,-409.96592622,0.00016438,2]
[361748657,1747755037113,-271.44905102,0.00016438,2]
[361748658,1747755037127,-400.63354523,0.00016438,2]
[361748659,1747755037137,-400.0,0.00016438,2]
[361748660,1747755037147,-430.0,0.00016438,2]
[361748661,1747755037156,-401.27301087,0.00016438,2]
[361748662,1747755037165,-430.0,0.00016438,2]
[361748663,1747755037174,-430.0,0.00016438,2]
[361748664,1747755037184,-400.0,0.00016438,2]
[361748665,1747755037194,-241.21054526,0.00016438,2]
[361748666,1747755037205,-999.51,0.00016438,2]
[361748667,1747755037215,-400.0,0.00016438,2]
[361748668,1747755037225,-430.0,0.00016438,2]
[361748669,1747755037234,-397.28245832,0.00016438,2]
[361748670,1747755037243,-939.83,0.00016438,2]
[361748671,1747755037252,-430.0,0.00016438,2]
[361748672,1747755037261,-1159.8,0.00016438,2]
[361748673,1747755037270,-413.36321639,0.00016438,2]
[361748674,1747755037280,-450.0,0.00016438,2]
[361748675,1747755037289,-430.0,0.00016438,2]
[361748676,1747755037298,-400.0,0.00016438,2]
[361748677,1747755037308,-430.0,0.00016438,2]
[361748678,1747755037317,-430.0,0.00016438,2]
[361748679,1747755037327,-671.82,0.00016438,2]
[361748680,1747755037336,-450.0,0.00016438,2]
[361748681,1747755037346,-400.0,0.00016438,2]
[361748682,1747755037359,-400.83442213,0.00016438,2]
[361748683,1747755037370,-431.39,0.00016438,2]
[361748684,1747755037379,-430.0,0.00016438,2]
[361748685,1747755037389,-407.81691153,0.00016438,2]
[361748686,1747755037398,-215.25677807,0.0001658,2]
[361748687,1747755037408,-207.4,0.0001658,2]
[361748688,1747755037417,-713.94802478,0.00016705,2]
[361748689,1747755037427,-500.0,0.00016711,2]
[361748690,1747755037437,-500.0,0.00016711,2]
[361748691,1747755037447,-500.0,0.00016711,2]
[361748692,1747755037457,-500.0,0.00016711,2]
[361748693,1747755037466,-677.76,0.00016711,2]
[361748694,1747755037476,-535.1,0.00016712,2]
[361748695,1747755037486,-430.0,0.00016712,2]
[361748696,1747755037497,-157.04,0.00016712,2]
[361748697,1747755037506,-430.0,0.00016712,2]
[361748698,1747755037516,-397.3,0.00016712,2]
[361748699,1747755037526,-388.16,0.00016712,2]
[361748700,1747755037535,-150.7,0.00016712,2]
[361748701,1747755037544,-349.72,0.00016712,2]
[361748702,1747755037554,-430.0,0.00016712,2]
[361748703,1747755037564,-434.61,0.00016712,2]
[361748704,1747755037575,-372.8235468,0.00016712,2]
[361748705,1747755037584,-443.68,0.00016712,2]
[361748706,1747755037594,-430.0,0.00016712,2]
[361748707,1747755037603,-430.0,0.00016712,2]
[361748708,1747755037613,-550.94,0.00016712,2]
[361748709,1747755037622,-430.0,0.00016712,2]
[361748710,1747755037633,-430.0,0.00016712,2]
[361748711,1747755037643,-327.08,0.00016712,2]
[361748712,1747755037653,-430.0,0.00016712,2]
[361748713,1747755037663,-430.0,0.00016712,2]
[361748714,1747755037674,-225.42,0.00016712,2]
[361748715,1747755037683,-430.0,0.00016712,2]
[361748716,1747755037693,-430.0,0.00016712,2]
[361748717,1747755037703,-430.0,0.00016712,2]
[361748718,1747755037713,-430.0,0.00016712,2]
[361748719,1747755037723,-430.0,0.00016712,2]
[361748720,1747755037733,-430.0,0.00016712,2]
[361748721,1747755037743,-1103.97,0.00016712,2]
[361748722,1747755037752,-430.0,0.00016712,2]
[361748723,1747755037762,-786.0,0.00016712,2]
[361748724,1747755037771,-430.0,0.00016712,2]
[361748725,1747755037781,-430.0,0.00016712,2]
[361748726,1747755037791,-277.06,0.00016712,2]
[361748727,1747755037801,-461.04,0.00016712,2]
[361748728,1747755037811,-485.08,0.00016712,2]
[361748730,1747755037820,-163.99,0.00016712,2]
[361748731,1747755037829,-430.0,0.00016712,2]
[361748733,1747755037838,-430.0,0.00016712,2]
[361748735,1747755037848,-430.0,0.00016712,2]
[361748737,1747755037858,-430.0,0.00016712,2]
[361748738,1747755037869,-430.0,0.00016712,2]
[361748740,1747755037880,-430.0,0.00016712,2]
[361748741,1747755037890,-430.0,0.00016712,2]
[361748743,1747755037900,-430.0,0.00016712,2]
[361748745,1747755037910,-883.66,0.00016712,2]
[361748746,1747755037920,-430.0,0.00016712,2]
[361748747,1747755037931,-430.0,0.00016712,2]
[361748748,1747755037942,-430.0,0.00016712,2]
[361748749,1747755037954,-430.0,0.00016712,2]
[361748750,1747755037963,-518.35,0.00016712,2]
[361748751,1747755037974,-430.0,0.00016712,2]
[361748752,1747755037984,-500.0,0.00016712,2]
[361748753,1747755037994,-718.51,0.00016712,2]
[361748754,1747755038004,-430.0,0.00016712,2]
[361748755,1747755038014,-294.23,0.00016712,2]
[361748756,1747755038025,-430.0,0.00016712,2]
[361748757,1747755038035,-430.0,0.00016712,2]
[361748758,1747755038045,-430.0,0.00016712,2]
[361748759,1747755038055,-430.0,0.00016712,2]
[361748761,1747755038064,-5283.52,0.00016712,2]
[361748763,1747755038073,-430.0,0.00016712,2]
[361748764,1747755038083,-430.0,0.00016712,2]
[361748766,1747755038092,-430.0,0.00016712,2]
[361748768,1747755038102,-430.0,0.00016712,2]
[361748770,1747755038112,-430.0,0.00016712,2]
[361748772,1747755038124,-232.2,0.00016712,2]
[361748774,1747755038134,-430.0,0.00016712,2]
[361748776,1747755038145,-430.0,0.00016712,2]
[361748778,1747755038155,-430.0,0.00016712,2]
[361748780,1747755038165,-430.0,0.00016712,2]
[361748781,1747755038176,-430.0,0.00016712,2]
[361748783,1747755038185,-430.0,0.00016712,2]
[361748785,1747755038196,-430.0,0.00016712,2]
[361748787,1747755038205,-430.0,0.00016712,2]
[361748789,1747755038214,-430.0,0.00016712,2]
[361748790,1747755038223,-430.0,0.00016712,2]
[361748791,1747755038234,-430.0,0.00016712,2]
[361748792,1747755038244,-980.83,0.00016712,2]
[361748793,1747755038253,-430.0,0.00016712,2]
[361748795,1747755038263,-370.0,0.00016712,2]
[361748796,1747755038274,-3236.06,0.00016712,2]
[361748798,1747755038283,-430.0,0.00016712,2]
[361748800,1747755038292,-430.0,0.00016712,2]
[361748801,1747755038301,-430.0,0.00016712,2]
[361748803,1747755038311,-1298.05,0.00016712,2]
[361748805,1747755038320,-335.54,0.00016712,2]
[361748807,1747755038330,-430.0,0.00016712,2]
[361748809,1747755038340,-430.0,0.00016712,2]
[361748811,1747755038351,-999.51,0.00016712,2]
[361748813,1747755038363,-430.0,0.00016712,2]
[361748815,1747755038373,-939.83,0.00016712,2]
[361748817,1747755038383,-430.0,0.00016712,2]
[361748819,1747755038392,-1159.8,0.00016712,2]
[361748821,1747755038402,-430.0,0.00016712,2]
[361748822,1747755038412,-430.0,0.00016712,2]
[361748824,1747755038422,-430.0,0.00016712,2]
[361748826,1747755038434,-671.82,0.00016712,2]
[361748828,1747755038444,-155.65,0.00016712,2]
[361748830,1747755038453,-151.0,0.000169,2]
[361748832,1747755038463,-6242.69140132,0.000169,2]
[361748834,1747755038472,-500.0,0.00016985,2]
[361748836,1747755038482,-500.0,0.00016985,2]
[361748838,1747755038491,-500.0,0.00016985,2]
[361748840,1747755038500,-500.0,0.00016985,2]
[361748842,1747755038510,-677.76,0.00016985,2]
[361748844,1747755038521,-430.0,0.00016986,2]
[361748846,1747755038530,-557.85,0.00016986,2]
[361748847,1747755038539,-261.35002777,0.00016986,2]
[361748849,1747755038548,-434.61,0.00016986,2]
[361748851,1747755038558,-443.68,0.00016986,2]
[361748853,1747755038567,-430.0,0.00016986,2]
[361748855,1747755038577,-430.0,0.00016986,2]
[361748857,1747755038587,-430.0,0.00016986,2]
[361748859,1747755038597,-165.76,0.00016986,2]
[361748861,1747755038606,-271.82,0.00016986,2]
[361748877,1747755038761,-303.6,0.00016986,2]
[361748879,1747755038771,-312.09,0.00016986,2]
[361748881,1747755038781,-430.0,0.00016986,2]
[361748883,1747755038791,-430.0,0.00016986,2]
[361748885,1747755038801,-430.0,0.00016986,2]
[361748887,1747755038810,-430.0,0.00016986,2]
[361748889,1747755038820,-430.0,0.00016986,2]
[361748891,1747755038829,-1103.97,0.00016986,2]
[361748893,1747755038838,-430.0,0.00016986,2]
[361748895,1747755038847,-786.0,0.00016986,2]
[361748897,1747755038857,-191.65,0.00016986,2]
[361748899,1747755038867,-430.0,0.00016986,2]
[361748901,1747755038877,-461.04,0.00016986,2]
[361748902,1747755038887,-485.08,0.00016986,2]
[361748904,1747755038896,-347.88,0.00016986,2]
[361748906,1747755038906,-430.0,0.00016986,2]
[361748908,1747755038916,-430.0,0.00016986,2]
[361748909,1747755038925,-430.0,0.00016986,2]
[361748910,1747755038936,-430.0,0.00016986,2]
[361748911,1747755038946,-430.0,0.00016986,2]
[361748912,1747755038955,-155.83,0.00016986,2]
[361748913,1747755038965,-430.0,0.00016986,2]
[361748914,1747755038975,-883.66,0.00016986,2]
[361748915,1747755038985,-430.0,0.00016986,2]
[361748916,1747755038995,-430.0,0.00016986,2]
[361748917,1747755039005,-430.0,0.00016986,2]
[361748918,1747755039015,-218.79,0.00016986,2]
[361748919,1747755039025,-518.35,0.00016986,2]
[361748920,1747755039035,-430.0,0.00016986,2]
[361748921,1747755039045,-500.0,0.00016986,2]
[361748922,1747755039055,-718.51,0.00016986,2]
[361748923,1747755039064,-430.0,0.00016986,2]
[361748924,1747755039074,-430.0,0.00016986,2]
[361748925,1747755039084,-313.2,0.00016986,2]
[361748926,1747755039094,-430.0,0.00016986,2]
[361748927,1747755039104,-430.0,0.00016986,2]
[361748928,1747755039114,-5283.52,0.00016986,2]
[361748929,1747755039125,-430.0,0.00016986,2]
[361748930,1747755039134,-430.0,0.00016986,2]
[361748931,1747755039144,-430.0,0.00016986,2]
[361748932,1747755039154,-430.0,0.00016986,2]
[361748933,1747755039164,-430.0,0.00016986,2]
[361748934,1747755039174,-430.0,0.00016986,2]
[361748935,1747755039183,-569.9,0.00016986,2]
[361748936,1747755039192,-430.0,0.00016986,2]
[361748937,1747755039201,-430.0,0.00016986,2]
[361748938,1747755039211,-430.0,0.00016986,2]
[361748939,1747755039221,-430.0,0.00016986,2]
[361748940,1747755039232,-430.0,0.00016986,2]
[361748941,1747755039243,-430.0,0.00016986,2]
[361748942,1747755039253,-430.0,0.00016986,2]
[361748943,1747755039263,-430.0,0.00016986,2]
[361748944,1747755039273,-430.0,0.00016986,2]
[361748945,1747755039283,-980.83,0.00016986,2]
[361748946,1747755039293,-430.0,0.00016986,2]
[361748947,1747755039302,-3236.06,0.00016986,2]
[361748948,1747755039312,-430.0,0.00016986,2]
[361748949,1747755039322,-430.0,0.00016986,2]
[361748950,1747755039332,-430.0,0.00016986,2]
[361748951,1747755039341,-1298.05,0.00016986,2]
[361748952,1747755039352,-430.0,0.00016986,2]
[361748953,1747755039363,-430.0,0.00016986,2]
[361748954,1747755039374,-999.51,0.00016986,2]
[361748955,1747755039383,-430.0,0.00016986,2]
[361748956,1747755039392,-939.83,0.00016986,2]
[361748957,1747755039403,-430.0,0.00016986,2]
[361748958,1747755039412,-1159.8,0.00016986,2]
[361748959,1747755039422,-430.0,0.00016986,2]
[361748960,1747755039432,-430.0,0.00016986,2]
[361748961,1747755039442,-430.0,0.00016986,2]
[361748962,1747755039451,-671.82,0.00016986,2]
[361748963,1747755039461,-420.0,0.00017007,2]
[361748964,1747755039471,-420.0,0.00017007,2]
[361748965,1747755039480,-500.0,0.00017032,2]
[361748966,1747755039491,-500.0,0.00017042,2]
[361748967,1747755039500,-500.0,0.00017042,2]
[361748968,1747755039510,-263.61989077,0.00017042,2]
[361748969,1747755039520,-500.0,0.00017063,2]
[361748970,1747755039530,-713.94802478,0.00017072,2]
[361748971,1747755039540,-430.0,0.00017093,2]
[361748972,1747755039549,-500.0,0.00017117,2]
[361748973,1747755039559,-576.25243385,0.00017117,2]
[361748974,1747755039569,-500.0,0.00017159,2]
[361748975,1747755039579,-500.0,0.00017159,2]
[361748976,1747755039588,-500.0,0.00017159,2]
[361748977,1747755039598,-505.67096782,0.00017159,2]
[361748978,1747755039608,-500.0,0.00017159,2]
[361748979,1747755039617,-500.0,0.00017159,2]
[361748980,1747755039627,-500.0,0.00017159,2]
[361748981,1747755039636,-504.55868326,0.00017159,2]
[361748982,1747755039645,-500.0,0.00017159,2]
[361748983,1747755039655,-500.0,0.00017159,2]
[361748984,1747755039664,-500.0,0.00017159,2]
[361748985,1747755039673,-6242.69140111,0.0001721,2]
[361748986,1747755039683,-500.0,0.00017259,2]
[361748987,1747755039693,-500.0,0.00017259,2]
[361748988,1747755039702,-430.0,0.0001726,2]
[361748989,1747755039712,-434.61,0.0001726,2]
[361748990,1747755039722,-443.68,0.0001726,2]
[361748991,1747755039731,-430.0,0.0001726,2]
[361748992,1747755039741,-430.0,0.0001726,2]
[361748993,1747755039752,-430.0,0.0001726,2]
[361748994,1747755039762,-430.0,0.0001726,2]
[361748995,1747755039772,-430.0,0.0001726,2]
[361748996,1747755039782,-430.0,0.0001726,2]
[361748997,1747755039792,-212.67,0.0001726,2]
[361748999,1747755039802,-236.99,0.0001726,2]
[361749000,1747755039812,-1103.97,0.0001726,2]
[361749001,1747755039822,-237.82564432,0.0001726,2]
[361749002,1747755039832,-786.0,0.0001726,2]
[361749003,1747755039841,-430.0,0.0001726,2]
[361749004,1747755039851,-461.04,0.0001726,2]
[361749005,1747755039861,-485.08,0.0001726,2]
[361749007,1747755039873,-430.0,0.0001726,2]
[361749008,1747755039883,-430.0,0.0001726,2]
[361749009,1747755039893,-430.0,0.0001726,2]
[361749010,1747755039902,-430.0,0.0001726,2]
[361749011,1747755039912,-430.0,0.0001726,2]
[361749012,1747755039922,-430.0,0.0001726,2]
[361749013,1747755039932,-883.66,0.0001726,2]
[361749014,1747755039943,-430.0,0.0001726,2]
[361749015,1747755039952,-430.0,0.0001726,2]
[361749016,1747755039962,-430.0,0.0001726,2]
[361749017,1747755039972,-518.35,0.0001726,2]
[361749018,1747755039982,-246.93,0.0001726,2]
[361749019,1747755039992,-443.92309113,0.0001726,2]
[361749020,1747755040002,-718.51,0.0001726,2]
[361749021,1747755040012,-430.0,0.0001726,2]
[361749022,1747755040022,-384.81183,0.0001726,2]
[361749023,1747755040032,-430.0,0.0001726,2]
[361749024,1747755040042,-384.81183,0.0001726,2]
[361749025,1747755040052,-430.0,0.0001726,2]
[361749026,1747755040061,-430.0,0.0001726,2]
[361749027,1747755040071,-5283.52,0.0001726,2]
[361749031,1747755040081,-442.78,0.0001726,2]
[361749037,1747755040090,-430.0,0.0001726,2]
[361749040,1747755040100,-430.0,0.0001726,2]
[361749041,1747755040110,-430.0,0.0001726,2]
[361749042,1747755040121,-430.0,0.0001726,2]
[361749043,1747755040130,-430.0,0.0001726,2]
[361749044,1747755040140,-151.0,0.0001726,2]
[361749046,1747755040150,-430.0,0.0001726,2]
[361749048,1747755040160,-151.0,0.0001726,2]
[361749049,1747755040170,-430.0,0.0001726,2]
[361749050,1747755040181,-430.0,0.0001726,2]
[361749051,1747755040191,-510.0,0.0001726,2]
[361749052,1747755040201,-430.0,0.0001726,2]
[361749054,1747755040212,-430.0,0.0001726,2]
[361749055,1747755040222,-430.0,0.0001726,2]
[361749056,1747755040232,-430.0,0.0001726,2]
[361749057,1747755040242,-980.83,0.0001726,2]
[361749058,1747755040253,-151.0,0.0001726,2]
[361749059,1747755040263,-430.0,0.0001726,2]
[361749060,1747755040273,-430.0,0.0001726,2]
[361749061,1747755040283,-151.0,0.0001726,2]
[361749062,1747755040293,-3236.06,0.0001726,2]
[361749063,1747755040302,-430.0,0.0001726,2]
[361749064,1747755040312,-430.0,0.0001726,2]
[361749065,1747755040322,-430.0,0.0001726,2]
[361749066,1747755040331,-1298.05,0.0001726,2]
[361749067,1747755040341,-430.0,0.0001726,2]
[361749068,1747755040353,-151.0,0.0001726,2]
[361749069,1747755040364,-151.0,0.0001726,2]
[361749070,1747755040378,-999.51,0.0001726,2]
[361749071,1747755040388,-268.34,0.0001726,2]
[361749072,1747755040398,-939.83,0.0001726,2]
[361749073,1747755040408,-430.0,0.0001726,2]
[361749074,1747755040419,-430.0,0.0001726,2]
[361749075,1747755040431,-1159.8,0.0001726,2]
[361749076,1747755040441,-413.5,0.0001726,2]
[361749077,1747755040451,-283.54,0.0001726,2]
[361749078,1747755040461,-430.0,0.0001726,2]
[361749079,1747755040471,-671.82,0.0001726,2]
[361749080,1747755040481,-160.0,0.00017296,2]
[361749082,1747755040491,-160.0,0.00017296,2]
[361749084,1747755040500,-160.0,0.00017296,2]
[361749086,1747755040510,-160.0,0.00017296,2]
[361749088,1747755040520,-160.0,0.00017296,2]
[361749090,1747755040530,-160.0,0.00017296,2]
[361749092,1747755040541,-422.65292303,0.00017296,2]
[361749093,1747755040550,-212.38718278,0.00017296,2]
[361749094,1747755040560,-160.0,0.00017296,2]
[361749095,1747755040570,-160.0,0.00017297,2]
[361749096,1747755040580,-151.0,0.000173,2]
[361749097,1747755040589,-500.0,0.00017357,2]
[361749098,1747755040599,-500.56805726,0.00017357,2]
[361749099,1747755040609,-500.0,0.00017357,2]
[361749100,1747755040620,-500.0,0.00017357,2]
[361749101,1747755040630,-500.0,0.00017357,2]
[361749102,1747755040640,-500.0,0.00017357,2]
[361749103,1747755040649,-500.98319267,0.00017373,2]
[361749104,1747755040659,-500.0,0.00017373,2]
[361749105,1747755040671,-460.41414581,0.00017373,2]
[361749106,1747755040682,-501.53825745,0.00017373,2]
[361749108,1747755040693,-500.0,0.00017373,2]
[361749109,1747755040703,-500.0,0.00017373,2]